[Event "MČR juniorů a juniorek v rapid šachu 2024"]
[Site "Hotel Fit Fun, Harrachov, Czech Republic"]
[Date "2024.09.21"]
[Round "2.29"]
[White "Hrazdira Matyas Josef"]
[Black "Macova Marketa"]
[Result "1-0"]
[TimeControl "20+5"]
[WhiteFideId "23732954"]
[BlackFideId "23715588"]
[WhiteElo "1786"]
[BlackElo "1587"]

1. e4 {[%clk 00:20:08]} {[%emt 00:00:01]} e5 {[%clk 00:20:09]} {[%emt
00:00:02]} 2. Nf3 {[%clk 00:20:11]} {[%emt 00:00:02]} Nc6 {[%clk 00:20:12]}
{[%emt 00:00:01]} 3. Bb5 {[%clk 00:20:14]} {[%emt 00:00:02]} Nf6 {[%clk
00:20:16]} {[%emt 00:00:02]} 4. O-O {[%clk 00:20:16]} {[%emt 00:00:02]} Bc5
{[%clk 00:20:19]} {[%emt 00:00:02]} 5. d3 {[%clk 00:20:10]} {[%emt 00:00:12]}
d6 {[%clk 00:20:22]} {[%emt 00:00:01]} 6. h3 {[%clk 00:20:12]} {[%emt
00:00:03]} Bd7 {[%clk 00:20:07]} {[%emt 00:00:20]} 7. c3 {[%clk 00:20:12]}
{[%emt 00:00:05]} O-O {[%clk 00:20:04]} {[%emt 00:00:08]} 8. Re1 {[%clk
00:20:02]} {[%emt 00:00:15]} Qe7 {[%clk 00:19:25]} {[%emt 00:00:44]} 9. Nbd2
{[%clk 00:19:47]} {[%emt 00:00:19]} a6 {[%clk 00:18:00]} {[%emt 00:01:31]} 10.
Ba4 {[%clk 00:19:50]} {[%emt 00:00:02]} Rfe8 {[%clk 00:15:45]} {[%emt
00:02:20]} 11. Nf1 {[%clk 00:19:33]} {[%emt 00:00:22]} b5 {[%clk 00:15:19]}
{[%emt 00:00:31]} 12. Bc2 {[%clk 00:19:34]} {[%emt 00:00:04]} Rad8 {[%clk
00:14:45]} {[%emt 00:00:39]} 13. a4 {[%clk 00:18:55]} {[%emt 00:00:43]} b4
{[%clk 00:13:55]} {[%emt 00:00:56]} 14. d4 {[%clk 00:18:49]} {[%emt 00:00:11]}
exd4 {[%clk 00:13:38]} {[%emt 00:00:22]} 15. cxd4 {[%clk 00:18:51]} {[%emt
00:00:03]} Bb6 {[%clk 00:13:37]} {[%emt 00:00:05]} 16. Ng3 {[%clk 00:16:26]}
{[%emt 00:02:29]} Bc8 {[%clk 00:12:08]} {[%emt 00:01:35]} 17. Qd3 {[%clk
00:13:32]} {[%emt 00:02:59]} Qd7 {[%clk 00:09:29]} {[%emt 00:02:44]} 18. Bg5
{[%clk 00:12:53]} {[%emt 00:00:44]} Qe7 {[%clk 00:06:57]} {[%emt 00:02:36]} 19.
Nh5 {[%clk 00:10:24]} {[%emt 00:02:35]} h6 {[%clk 00:06:12]} {[%emt 00:00:50]}
20. Nxf6+ {[%clk 00:07:43]} {[%emt 00:02:46]} gxf6 {[%clk 00:06:13]} {[%emt
00:00:04]} 21. e5 {[%clk 00:07:40]} {[%emt 00:00:09]} Kf8 {[%clk 00:03:24]}
{[%emt 00:02:54]} 22. Bxh6+ {[%clk 00:07:29]} {[%emt 00:00:15]} 1-0



[ePGN "0.1;DGT LiveChess/2.2.6"]

[Event "MČR juniorů a juniorek v rapid šachu 2024"]
[Site "Hotel Fit Fun, Harrachov, Czech Republic"]
[Date "2024.09.21"]
[Round "2.3"]
[White "Siles Jan"]
[Black "Skypala Ondrej"]
[Result "0-1"]
[TimeControl "20+5"]
[WhiteFideId "23715405"]
[BlackFideId "366285"]
[WhiteElo "1873"]
[BlackElo "2033"]

1. d4 {[%clk 00:20:08]} {[%emt 00:00:01]} Nf6 {[%clk 00:20:09]} {[%emt
00:00:01]} 2. Nf3 {[%clk 00:20:10]} {[%emt 00:00:03]} d5 {[%clk 00:20:12]}
{[%emt 00:00:02]} 3. e3 {[%clk 00:20:06]} {[%emt 00:00:10]} e6 {[%clk
00:20:11]} {[%emt 00:00:06]} 4. Bd3 {[%clk 00:20:08]} {[%emt 00:00:03]} c5
{[%clk 00:20:13]} {[%emt 00:00:02]} 5. c3 {[%clk 00:20:12]} {[%emt 00:00:01]}
Nbd7 {[%clk 00:20:15]} {[%emt 00:00:04]} 6. Nbd2 {[%clk 00:20:12]} {[%emt
00:00:05]} Bd6 {[%clk 00:20:18]} {[%emt 00:00:02]} 7. O-O {[%clk 00:20:14]}
{[%emt 00:00:03]} O-O {[%clk 00:20:20]} {[%emt 00:00:03]} 8. Re1 {[%clk
00:20:10]} {[%emt 00:00:09]} e5 {[%clk 00:20:13]} {[%emt 00:00:12]} 9. dxe5
{[%clk 00:17:59]} {[%emt 00:02:16]} Nxe5 {[%clk 00:20:16]} {[%emt 00:00:02]} 10.
Nxe5 {[%clk 00:15:35]} {[%emt 00:02:29]} Bxe5 {[%clk 00:20:19]} {[%emt
00:00:01]} 11. e4 {[%clk 00:14:46]} {[%emt 00:00:54]} d4 {[%clk 00:15:41]}
{[%emt 00:04:43]} 12. Nf3 {[%clk 00:13:12]} {[%emt 00:01:39]} Bg4 {[%clk
00:15:34]} {[%emt 00:00:12]} 13. Bd2 {[%clk 00:09:18]} {[%emt 00:03:59]} dxc3
{[%clk 00:15:17]} {[%emt 00:00:22]} 14. Bxc3 {[%clk 00:09:18]} {[%emt
00:00:06]} Bxc3 {[%clk 00:15:21]} {[%emt 00:00:01]} 15. bxc3 {[%clk 00:09:21]}
{[%emt 00:00:02]} Re8 {[%clk 00:15:18]} {[%emt 00:00:08]} 16. h3 {[%clk
00:05:39]} {[%emt 00:03:47]} Bh5 {[%clk 00:15:17]} {[%emt 00:00:06]} 17. e5
{[%clk 00:03:53]} {[%emt 00:01:52]} Nd5 {[%clk 00:15:13]} {[%emt 00:00:08]} 18.
Bc4 {[%clk 00:01:47]} {[%emt 00:02:11]} Nb6 {[%clk 00:12:55]} {[%emt 00:02:24]}
19. Bd3 {[%clk 00:01:25]} {[%emt 00:00:27]} Nd5 {[%clk 00:12:02]} {[%emt
00:00:58]} 20. Bc4 {[%clk 00:01:28]} {[%emt 00:00:01]} Nf4 {[%clk 00:12:03]}
{[%emt 00:00:04]} 21. Qb3 {[%clk 00:00:20]} {[%emt 00:01:14]} Bxf3 {[%clk
00:11:48]} {[%emt 00:00:19]} 22. Bxf7+ {[%clk 00:00:11]} {[%emt 00:00:15]} Kh8
{[%clk 00:11:49]} {[%emt 00:00:03]} 23. c4 {[%clk 00:00:10]} {[%emt 00:00:06]}
Nxh3+ {[%clk 00:11:23]} {[%emt 00:00:31]} 24. Kf1 {[%clk 00:00:08]} {[%emt
00:00:08]} Rf8 {[%clk 00:10:25]} {[%emt 00:01:02]} 25. Qxf3 {[%clk 00:00:12]}
Ng5 {[%clk 00:10:17]} {[%emt 00:00:13]} 26. Qxb7 {[%clk 00:00:07]} {[%emt
00:00:11]} Rxf7 {[%clk 00:10:11]} {[%emt 00:00:10]} 0-1



[ePGN "0.1;DGT LiveChess/2.2.6"]

[Event "MČR juniorů a juniorek v rapid šachu 2024"]
[Site "Hotel Fit Fun, Harrachov, Czech Republic"]
[Date "2024.09.21"]
[Round "2.30"]
[White "Dorazilova Kristyna"]
[Black "Hudik Martin"]
[Result "1/2-1/2"]
[TimeControl "20+5"]
[WhiteFideId "23739142"]
[BlackFideId "23769947"]
[WhiteElo "1771"]
[BlackElo "1572"]

1. e4 {[%clk 00:20:09]} c5 {[%clk 00:20:07]} {[%emt 00:00:03]} 2. Nc3 {[%clk
00:20:13]} {[%emt 00:00:01]} Nc6 {[%clk 00:20:06]} {[%emt 00:00:07]} 3. Bb5
{[%clk 00:20:17]} {[%emt 00:00:01]} d6 {[%clk 00:19:53]} {[%emt 00:00:18]} 4.
Bxc6+ {[%clk 00:20:14]} {[%emt 00:00:09]} bxc6 {[%clk 00:19:55]} {[%emt
00:00:02]} 5. f4 {[%clk 00:20:18]} {[%emt 00:00:01]} Nf6 {[%clk 00:19:45]}
{[%emt 00:00:14]} 6. Nf3 {[%clk 00:20:20]} {[%emt 00:00:03]} Bg4 {[%clk
00:19:34]} {[%emt 00:00:17]} 7. O-O {[%clk 00:20:19]} {[%emt 00:00:05]} e6
{[%clk 00:19:11]} {[%emt 00:00:29]} 8. h3 {[%clk 00:20:20]} {[%emt 00:00:04]}
Bxf3 {[%clk 00:18:35]} {[%emt 00:00:41]} 9. Rxf3 {[%clk 00:20:24]} {[%emt
00:00:01]} d5 {[%clk 00:18:23]} {[%emt 00:00:17]} 10. e5 {[%clk 00:20:28]}
{[%emt 00:00:01]} Nd7 {[%clk 00:18:19]} {[%emt 00:00:09]} 11. d3 {[%clk
00:20:28]} {[%emt 00:00:05]} Be7 {[%clk 00:18:09]} {[%emt 00:00:15]} 12. Qe1
{[%clk 00:20:14]} {[%emt 00:00:18]} O-O {[%clk 00:17:24]} {[%emt 00:00:50]} 13.
b3 {[%clk 00:17:35]} {[%emt 00:02:45]} f6 {[%clk 00:16:57]} {[%emt 00:00:32]}
14. exf6 {[%clk 00:17:01]} {[%emt 00:00:39]} Bxf6 {[%clk 00:16:30]} {[%emt
00:00:32]} 15. Qxe6+ {[%clk 00:16:35]} {[%emt 00:00:32]} Kh8 {[%clk 00:14:43]}
{[%emt 00:01:51]} 16. Bb2 {[%clk 00:16:39]} Qc7 {[%clk 00:14:18]} {[%emt
00:00:30]} 17. Na4 {[%clk 00:15:32]} {[%emt 00:01:12]} Rae8 {[%clk 00:13:31]}
{[%emt 00:00:53]} 18. Qg4 {[%clk 00:15:35]} {[%emt 00:00:01]} Bxb2 19. Nxb2
{[%clk 00:15:39]} Nf6 {[%clk 00:13:08]} {[%emt 00:00:11]} 20. Qg3 {[%clk
00:15:34]} {[%emt 00:00:10]} Nh5 {[%clk 00:12:40]} {[%emt 00:00:34]} 21. Qf2
{[%clk 00:15:20]} {[%emt 00:00:19]} Rxf4 {[%clk 00:11:37]} {[%emt 00:01:08]} 22.
Rxf4 {[%clk 00:13:44]} {[%emt 00:01:41]} Qxf4 {[%clk 00:09:20]} {[%emt
00:02:22]} 23. Rf1 {[%clk 00:13:24]} {[%emt 00:00:25]} Rf8 {[%clk 00:08:20]}
{[%emt 00:01:05]} 24. Qxf4 {[%clk 00:13:08]} {[%emt 00:00:21]} Nxf4 {[%clk
00:07:47]} {[%emt 00:00:38]} 25. Kh2 {[%clk 00:13:11]} {[%emt 00:00:01]} Ng6
{[%clk 00:07:22]} {[%emt 00:00:30]} 26. Re1 {[%clk 00:12:03]} {[%emt 00:01:14]}
Kg8 {[%clk 00:05:52]} {[%emt 00:01:34]} 27. Re2 {[%clk 00:11:09]} {[%emt
00:00:59]} Nf4 {[%clk 00:04:48]} {[%emt 00:01:09]} 28. Rf2 {[%clk 00:10:26]}
{[%emt 00:00:49]} Ne6 {[%clk 00:04:44]} {[%emt 00:00:08]} 29. Re2 {[%clk
00:09:53]} {[%emt 00:00:38]} Nf4 {[%clk 00:03:21]} {[%emt 00:01:29]} 30. Re7
{[%clk 00:08:41]} {[%emt 00:01:17]} Rf7 {[%clk 00:03:16]} {[%emt 00:00:10]} 31.
Re8+ {[%clk 00:07:33]} {[%emt 00:01:13]} Rf8 {[%clk 00:03:17]} {[%emt
00:00:04]} 32. Re1 {[%clk 00:06:13]} {[%emt 00:01:24]} Rf6 {[%clk 00:02:57]}
{[%emt 00:00:25]} 33. Na4 {[%clk 00:05:43]} {[%emt 00:00:35]} Ne6 {[%clk
00:02:54]} {[%emt 00:00:08]} 34. Kg1 {[%clk 00:04:53]} {[%emt 00:00:56]} Kf7
{[%clk 00:02:42]} {[%emt 00:00:16]} 35. Re2 {[%clk 00:04:16]} {[%emt 00:00:42]}
h6 {[%clk 00:01:50]} {[%emt 00:00:57]} 36. Rf2 {[%clk 00:03:27]} {[%emt
00:00:55]} Rxf2 {[%clk 00:01:45]} {[%emt 00:00:09]} 37. Kxf2 {[%clk 00:03:31]}
{[%emt 00:00:01]} Kf6 {[%clk 00:01:48]} {[%emt 00:00:03]} 38. Nc3 {[%clk
00:02:57]} {[%emt 00:00:39]} Ke5 {[%clk 00:01:44]} {[%emt 00:00:09]} 39. Ne2
{[%clk 00:03:01]} g5 {[%clk 00:01:36]} {[%emt 00:00:12]} 40. g3 {[%clk
00:02:42]} {[%emt 00:00:24]} Nd4 {[%clk 00:01:23]} {[%emt 00:00:18]} 41. c3
{[%clk 00:02:26]} {[%emt 00:00:21]} Nxe2 {[%clk 00:00:49]} {[%emt 00:00:39]} 42.
Kxe2 {[%clk 00:02:30]} {[%emt 00:00:02]} h5 {[%clk 00:00:39]} {[%emt 00:00:14]}
43. Kf3 {[%clk 00:02:34]} {[%emt 00:00:01]} d4 {[%clk 00:00:36]} {[%emt
00:00:08]} 44. c4 {[%clk 00:02:36]} {[%emt 00:00:04]} a6 {[%clk 00:00:30]}
{[%emt 00:00:10]} 45. g4 {[%clk 00:01:42]} {[%emt 00:01:00]} h4 {[%clk
00:00:24]} {[%emt 00:00:11]} 46. a3 {[%clk 00:01:34]} {[%emt 00:00:13]} a5
{[%clk 00:00:26]} {[%emt 00:00:03]} 47. a4 {[%emt 00:00:15]} Kf6 {[%emt
00:00:03]} 48. Ke4 {[%emt 00:00:01]} Ke6 49. Kf3 {[%emt 00:00:02]} Ke5 50. Kf2
{[%emt 00:00:01]} Kf4 1/2-1/2



[ePGN "0.1;DGT LiveChess/2.2.6"]

[Event "MČR juniorů a juniorek v rapid šachu 2024"]
[Site "Hotel Fit Fun, Harrachov, Czech Republic"]
[Date "2024.09.21"]
[Round "2.31"]
[White "Hyam Robin"]
[Black "Fousek Petr"]
[Result "1-0"]
[TimeControl "20+5"]
[WhiteFideId "23773413"]
[BlackFideId "23736003"]
[WhiteElo "1571"]
[BlackElo "1731"]

1. e4 {[%clk 00:20:08]} {[%emt 00:00:01]} c5 {[%clk 00:20:01]} {[%emt
00:00:10]} 2. a3 {[%clk 00:19:55]} {[%emt 00:00:18]} e6 {[%clk 00:20:00]}
{[%emt 00:00:06]} 3. b4 {[%clk 00:19:58]} {[%emt 00:00:02]} d6 {[%clk
00:20:03]} {[%emt 00:00:02]} 4. Nf3 {[%clk 00:19:52]} {[%emt 00:00:10]} Nf6
{[%clk 00:20:05]} {[%emt 00:00:03]} 5. Nc3 {[%clk 00:19:56]} {[%emt 00:00:02]}
Nc6 {[%clk 00:19:44]} {[%emt 00:00:25]} 6. b5 {[%clk 00:19:44]} {[%emt
00:00:17]} Nd4 {[%clk 00:19:26]} {[%emt 00:00:23]} 7. a4 {[%clk 00:17:18]}
{[%emt 00:02:32]} b6 {[%clk 00:18:52]} {[%emt 00:00:38]} 8. Bd3 {[%clk
00:15:48]} {[%emt 00:01:35]} Bb7 {[%clk 00:18:30]} {[%emt 00:00:28]} 9. O-O
{[%clk 00:15:00]} {[%emt 00:00:52]} Be7 {[%clk 00:18:12]} {[%emt 00:00:18]} 10.
Re1 {[%clk 00:14:56]} {[%emt 00:00:10]} O-O {[%clk 00:17:33]} {[%emt 00:00:48]}
11. Nxd4 {[%clk 00:14:15]} {[%emt 00:00:46]} cxd4 {[%clk 00:17:36]} {[%emt
00:00:02]} 12. Ne2 {[%clk 00:14:19]} {[%emt 00:00:01]} e5 {[%clk 00:17:28]}
{[%emt 00:00:13]} 13. Ng3 {[%clk 00:14:23]} Nd7 {[%clk 00:16:42]} {[%emt
00:00:51]} 14. Ba3 {[%clk 00:13:46]} {[%emt 00:00:43]} Rc8 {[%clk 00:16:00]}
{[%emt 00:00:46]} 15. Nf5 {[%clk 00:13:40]} {[%emt 00:00:12]} Nc5 {[%clk
00:15:50]} {[%emt 00:00:15]} 16. Nxe7+ {[%clk 00:13:11]} {[%emt 00:00:34]} Qxe7
{[%clk 00:15:52]} {[%emt 00:00:03]} 17. Bxc5 {[%clk 00:12:26]} {[%emt
00:00:51]} dxc5 {[%clk 00:15:54]} {[%emt 00:00:02]} 18. Bc4 {[%clk 00:12:29]}
{[%emt 00:00:02]} Kh8 {[%clk 00:15:45]} {[%emt 00:00:15]} 19. Qg4 {[%clk
00:12:15]} {[%emt 00:00:16]} Rcd8 {[%clk 00:15:06]} {[%emt 00:00:46]} 20. a5
{[%clk 00:11:23]} {[%emt 00:00:57]} Rd6 {[%clk 00:14:25]} {[%emt 00:00:46]} 21.
axb6 {[%clk 00:11:17]} {[%emt 00:00:12]} axb6 {[%clk 00:14:08]} {[%emt
00:00:22]} 22. Ra7 {[%clk 00:11:11]} {[%emt 00:00:10]} Rg6 {[%clk 00:13:50]}
{[%emt 00:00:23]} 23. Qh3 {[%clk 00:10:15]} {[%emt 00:01:00]} Kg8 {[%clk
00:12:19]} {[%emt 00:01:37]} 24. Rea1 {[%clk 00:09:04]} {[%emt 00:01:15]} Rd6
{[%clk 00:11:35]} {[%emt 00:00:50]} 25. Bd5 {[%clk 00:08:39]} {[%emt 00:00:30]}
Rd7 {[%clk 00:11:03]} {[%emt 00:00:37]} 26. Bxb7 {[%clk 00:07:03]} {[%emt
00:01:41]} Rxb7 {[%clk 00:11:04]} {[%emt 00:00:05]} 27. Qa3 {[%clk 00:06:46]}
{[%emt 00:00:21]} Rxa7 {[%clk 00:10:14]} {[%emt 00:00:56]} 28. Qxa7 {[%clk
00:06:49]} Qxa7 {[%clk 00:10:05]} {[%emt 00:00:15]} 29. Rxa7 {[%clk 00:06:53]}
{[%emt 00:00:01]} Rb8 {[%clk 00:10:06]} {[%emt 00:00:03]} 30. Kf1 {[%clk
00:06:29]} {[%emt 00:00:29]} h6 {[%clk 00:10:06]} {[%emt 00:00:06]} 31. Ke2
{[%clk 00:06:33]} f6 {[%clk 00:10:05]} {[%emt 00:00:05]} 32. Kd3 {[%clk
00:06:32]} {[%emt 00:00:06]} Kh7 {[%clk 00:10:03]} {[%emt 00:00:07]} 33. Kc4
{[%clk 00:06:30]} {[%emt 00:00:07]} Rd8 {[%clk 00:09:54]} {[%emt 00:00:14]} 34.
Rc7 {[%clk 00:06:18]} {[%emt 00:00:15]} Kg6 {[%clk 00:09:41]} {[%emt 00:00:20]}
35. Rc6 {[%clk 00:06:21]} {[%emt 00:00:03]} Rb8 {[%clk 00:09:32]} {[%emt
00:00:13]} 36. Kd5 {[%clk 00:06:23]} {[%emt 00:00:03]} Rd8+ {[%clk 00:09:27]}
{[%emt 00:00:10]} 37. Rd6 {[%clk 00:06:05]} {[%emt 00:00:23]} Rb8 {[%clk
00:09:14]} {[%emt 00:00:18]} 38. Kc6 {[%clk 00:05:58]} {[%emt 00:00:12]} Kf7
{[%clk 00:09:12]} {[%emt 00:00:07]} 39. Kc7 {[%clk 00:04:49]} {[%emt 00:01:14]}
Ra8 {[%clk 00:09:01]} {[%emt 00:00:16]} 40. Rxb6 {[%clk 00:04:24]} {[%emt
00:00:30]} Ra2 {[%clk 00:09:04]} {[%emt 00:00:02]} 41. Rd6 {[%clk 00:03:25]}
{[%emt 00:01:04]} Rxc2 {[%clk 00:09:01]} {[%emt 00:00:08]} 42. b6 {[%clk
00:03:30]} Rxd2 {[%clk 00:08:53]} {[%emt 00:00:13]} 43. b7 {[%clk 00:03:31]}
{[%emt 00:00:03]} Rb2 {[%clk 00:08:57]} {[%emt 00:00:01]} 44. Rb6 {[%clk
00:03:18]} {[%emt 00:00:18]} Rxb6 {[%clk 00:08:50]} {[%emt 00:00:13]} 45. Kxb6
{[%clk 00:03:21]} {[%emt 00:00:02]} d3 {[%clk 00:08:54]} 46. b8=Q {[%clk
00:03:23]} {[%emt 00:00:03]} d2 {[%clk 00:08:54]} {[%emt 00:00:04]} 47. Qc7+
{[%clk 00:03:16]} {[%emt 00:00:11]} Kg6 {[%clk 00:08:57]} {[%emt 00:00:03]} 48.
Qd6 {[%clk 00:03:19]} {[%emt 00:00:01]} 1-0



[ePGN "0.1;DGT LiveChess/2.2.6"]

[Event "MČR juniorů a juniorek v rapid šachu 2024"]
[Site "Hotel Fit Fun, Harrachov, Czech Republic"]
[Date "2024.09.21"]
[Round "2.32"]
[White "Kopecka Libuse"]
[Black "Tichy Richard"]
[Result "1/2-1/2"]
[TimeControl "20+5"]
[WhiteFideId "23748826"]
[BlackFideId "23727063"]
[WhiteElo "1496"]
[BlackElo "1698"]

1. e4 {[%clk 00:20:08]} {[%emt 00:00:02]} e5 {[%clk 00:20:10]} {[%emt
00:00:02]} 2. Nf3 {[%clk 00:20:08]} {[%emt 00:00:04]} Nf6 {[%clk 00:20:14]}
{[%emt 00:00:01]} 3. Nc3 {[%clk 00:20:10]} {[%emt 00:00:03]} Nc6 {[%clk
00:20:18]} {[%emt 00:00:01]} 4. Bb5 {[%clk 00:20:12]} {[%emt 00:00:03]} a6
{[%clk 00:20:20]} {[%emt 00:00:03]} 5. Bxc6 {[%clk 00:20:05]} {[%emt 00:00:12]}
dxc6 {[%clk 00:20:21]} {[%emt 00:00:04]} 6. d3 {[%clk 00:19:48]} {[%emt
00:00:21]} Bc5 {[%clk 00:20:00]} {[%emt 00:00:27]} 7. O-O {[%clk 00:19:11]}
{[%emt 00:00:42]} O-O {[%clk 00:19:53]} {[%emt 00:00:11]} 8. Nxe5 {[%clk
00:18:20]} {[%emt 00:00:57]} Bd4 {[%clk 00:18:23]} {[%emt 00:01:35]} 9. Nf3
{[%clk 00:17:23]} {[%emt 00:01:01]} Bg4 {[%clk 00:18:21]} {[%emt 00:00:08]} 10.
h3 {[%clk 00:16:05]} {[%emt 00:01:22]} Bh5 {[%clk 00:18:08]} {[%emt 00:00:19]}
11. Qe2 {[%clk 00:14:39]} {[%emt 00:01:31]} Re8 {[%clk 00:17:46]} {[%emt
00:00:27]} 12. Be3 {[%clk 00:13:39]} {[%emt 00:01:05]} c5 {[%clk 00:17:25]}
{[%emt 00:00:25]} 13. Rab1 {[%clk 00:11:46]} {[%emt 00:01:58]} b5 {[%clk
00:17:12]} {[%emt 00:00:19]} 14. Bxd4 {[%clk 00:08:41]} {[%emt 00:03:08]} cxd4
{[%clk 00:16:33]} {[%emt 00:00:44]} 15. Nd1 {[%clk 00:08:04]} {[%emt 00:00:42]}
c5 {[%clk 00:15:52]} {[%emt 00:00:47]} 16. c3 {[%clk 00:07:07]} {[%emt
00:01:02]} Rc8 {[%clk 00:14:29]} {[%emt 00:01:27]} 17. a3 {[%clk 00:06:18]}
{[%emt 00:00:55]} a5 {[%clk 00:13:47]} {[%emt 00:00:47]} 18. g4 {[%clk
00:04:22]} {[%emt 00:02:00]} Bg6 {[%clk 00:12:30]} {[%emt 00:01:22]} 19. b4
{[%clk 00:03:31]} {[%emt 00:00:57]} dxc3 {[%clk 00:11:54]} {[%emt 00:00:41]} 20.
Nxc3 {[%clk 00:02:49]} {[%emt 00:00:46]} cxb4 {[%clk 00:11:00]} {[%emt
00:01:00]} 21. Nxb5 {[%clk 00:02:02]} {[%emt 00:00:51]} Rb8 {[%clk 00:08:17]}
{[%emt 00:02:49]} 22. a4 {[%clk 00:00:53]} {[%emt 00:01:14]} h5 {[%clk
00:06:44]} {[%emt 00:01:38]} 23. Nfd4 {[%clk 00:00:39]} {[%emt 00:00:19]} hxg4
{[%clk 00:05:48]} {[%emt 00:01:00]} 24. hxg4 {[%clk 00:00:40]} {[%emt
00:00:04]} Nd5 {[%clk 00:05:19]} {[%emt 00:00:34]} 25. Nc6 {[%clk 00:00:38]}
{[%emt 00:00:07]} Qb6 {[%clk 00:03:00]} {[%emt 00:02:25]} 26. Nxb8 {[%clk
00:00:23]} {[%emt 00:00:19]} Qxb8 {[%clk 00:03:03]} {[%emt 00:00:03]} 27. Qd2
{[%clk 00:00:17]} {[%emt 00:00:11]} 1/2-1/2



[ePGN "0.1;DGT LiveChess/2.2.6"]